[Event "RUS-ch Blitz 2021"]
[Site "Sochi"]
[Date "2021.10.11"]
[Round "2.15"]
[White "Afanasiev, Nikita"]
[Black "Grebnev, Aleksey"]
[Result "1-0"]
[ECO "A22"]
[WhiteElo "2560"]
[BlackElo "2469"]
[Annotator "ChessBase"]
[PlyCount "165"]
[EventDate "2021.10.11"]
[EventType "blitz"]
[EventCountry "RUS"]
[SourceTitle "playchess.com"]
[Source "ChessBase"]
[SourceQuality "1"]
[TimeControl "180+2"]

1. c4 {[%emt 0:00:04]} Nf6 {[%emt 0:00:00]} 2. Nc3 {[%emt 0:00:03]} e5 {
[%emt 0:00:01]} 3. g3 {[%emt 0:00:02]} d5 {[%emt 0:00:02]} 4. cxd5 {[%emt 0:00:
07]} Nxd5 {[%emt 0:00:01]} 5. Bg2 {[%emt 0:00:00]} Nb6 {[%emt 0:00:06]} 6. e3 {
[%emt 0:00:06]} Be7 {[%emt 0:00:02]} 7. Nge2 {[%emt 0:00:05]} O-O {[%emt 0:00:
02]} 8. O-O {[%emt 0:00:02]} Nc6 {[%emt 0:00:01]} 9. f4 {[%emt 0:00:00]} Rb8 {
[%emt 0:00:39]} 10. fxe5 {[%emt 0:00:04]} Nxe5 {[%emt 0:00:00]} 11. d4 {
[%emt 0:00:02]} Ng6 {[%emt 0:00:06]} 12. Nf4 {[%emt 0:00:49]} c5 {[%emt 0:00:
08]} 13. Ne4 {[%emt 0:00:35]} cxd4 {[%emt 0:00:06]} 14. exd4 {[%emt 0:00:01]}
Bd7 {[%emt 0:00:13]} 15. d5 {[%emt 0:00:13]} Bb5 {[%emt 0:00:09]} 16. Re1 {
[%emt 0:00:09]} Bb4 {[%emt 0:00:09]} 17. Bd2 {[%emt 0:00:15]} Bxd2 {[%emt 0:00:
03]} 18. Qxd2 {[%emt 0:00:26]} Nxf4 {[%emt 0:00:03]} 19. Qxf4 {[%emt 0:00:12]}
Nxd5 {[%emt 0:00:00]} 20. Qf2 {[%emt 0:00:03]} Bc6 {[%emt 0:00:00]} 21. Rad1 {
[%emt 0:00:08]} Qa5 {[%emt 0:00:08]} 22. Nd6 {[%emt 0:00:05]} Nf6 {[%emt 0:00:
04]} 23. Bxc6 {[%emt 0:00:10]} bxc6 {[%emt 0:00:01]} 24. b3 {[%emt 0:00:00]} h6
{[%emt 0:00:06]} 25. Nc4 {[%emt 0:00:05]} Qb5 {[%emt 0:00:10]} 26. Re5 {
[%emt 0:00:02]} Qb4 {[%emt 0:00:19]} 27. Qf3 {[%emt 0:00:04]} Nd5 {[%emt 0:00:
04]} 28. Kg2 {[%emt 0:00:04]} Rfe8 {[%emt 0:00:00]} 29. Rde1 {[%emt 0:00:02]}
Rxe5 {[%emt 0:00:01]} 30. Rxe5 {[%emt 0:00:02]} Rd8 {[%emt 0:00:03]} 31. Re2 {
[%emt 0:00:02]} a5 {[%emt 0:00:04]} 32. Ne5 {[%emt 0:00:01]} Rf8 {[%emt 0:00:
23]} 33. Nxc6 {[%emt 0:00:01]} Qc5 {[%emt 0:00:04]} 34. Ne5 {[%emt 0:00:04]}
Qd6 {[%emt 0:00:03]} 35. Nc4 {[%emt 0:00:02]} Qd7 {[%emt 0:00:15]} 36. Rd2 {
[%emt 0:00:02]} Rd8 {[%emt 0:00:00]} 37. Kh1 {[%emt 0:00:01]} Qe6 {[%emt 0:00:
26]} 38. Ne3 {[%emt 0:00:03]} Nxe3 {[%emt 0:00:02]} 39. Rxd8+ {[%emt 0:00:00]}
Kh7 {[%emt 0:00:00]} 40. Rd4 {[%emt 0:00:04]} Nf5 {[%emt 0:00:09]} 41. Qe4 {
[%emt 0:00:00]} Qf6 {[%emt 0:00:01]} 42. Rd2 {[%emt 0:00:03]} g6 {[%emt 0:00:
04]} 43. Kg2 {[%emt 0:00:00]} Qc3 {[%emt 0:00:00]} 44. Re2 {[%emt 0:00:00]} Qc5
{[%emt 0:00:04]} 45. Qe5 {[%emt 0:00:05]} Qc6+ {[%emt 0:00:00]} 46. Qe4 {
[%emt 0:00:01]} Qc5 {[%emt 0:00:02]} 47. Qd3 {[%emt 0:00:04]} Qc6+ {[%emt 0:00:
04]} 48. Qe4 {[%emt 0:00:00]} Qc5 {[%emt 0:00:00]} 49. g4 {[%emt 0:00:02]} Nd6
{[%emt 0:00:03]} 50. Qf3 {[%emt 0:00:02]} Qd4 {[%emt 0:00:03]} 51. h3 {[%emt 0:
00:03]} a4 {[%emt 0:00:03]} 52. bxa4 {[%emt 0:00:01]} Qxa4 {[%emt 0:00:05]} 53.
Rd2 {[%emt 0:00:00]} Qb4 {[%emt 0:00:03]} 54. Rd5 {[%emt 0:00:05]} Qb8 {
[%emt 0:00:03]} 55. a4 {[%emt 0:00:03]} Kg8 {[%emt 0:00:00]} 56. a5 {[%emt 0:
00:01]} Nc4 {[%emt 0:00:03]} 57. a6 {[%emt 0:00:03]} Qb2+ {[%emt 0:00:00]} 58.
Kg3 {[%emt 0:00:03]} Qb8+ {[%emt 0:00:00]} 59. Kf2 {[%emt 0:00:00]} Qa7+ {
[%emt 0:00:03]} 60. Kg3 {[%emt 0:00:04]} Qxa6 {[%emt 0:00:02]} 61. Rd8+ {
[%emt 0:00:02]} Kg7 {[%emt 0:00:02]} 62. Rd4 {[%emt 0:00:00]} Ne5 {[%emt 0:00:
01]} 63. Qe3 {[%emt 0:00:02]} Qf6 {[%emt 0:00:00]} 64. Re4 {[%emt 0:00:04]} Nc6
{[%emt 0:00:04]} 65. Qc5 {[%emt 0:00:01]} Nd8 {[%emt 0:00:00]} 66. Qe5 {
[%emt 0:00:00]} Qxe5+ {[%emt 0:00:03]} 67. Rxe5 {[%emt 0:00:00]} Ne6 {[%emt 0:
00:00]} 68. Kf3 {[%emt 0:00:04]} Kf6 {[%emt 0:00:00]} 69. Ra5 {[%emt 0:00:00]}
Ng5+ {[%emt 0:00:02]} 70. Kg3 {[%emt 0:00:01]} Ne6 {[%emt 0:00:00]} 71. h4 {
[%emt 0:00:01]} Kg7 {[%emt 0:00:01]} 72. Kf3 {[%emt 0:00:01]} Kf6 {[%emt 0:00:
02]} 73. Ke4 {[%emt 0:00:00]} Nd8 {[%emt 0:00:02]} 74. Ra6+ {[%emt 0:00:01]}
Ne6 {[%emt 0:00:00]} 75. Rb6 {[%emt 0:00:00]} Kg7 {[%emt 0:00:06]} 76. Ke5 {
[%emt 0:00:03]} Nf8 {[%emt 0:00:02]} 77. Rd6 {[%emt 0:00:01]} Nh7 {[%emt 0:00:
02]} 78. Ra6 {[%emt 0:00:05]} Nf8 {[%emt 0:00:02]} 79. Ra7 {[%emt 0:00:04]} Ne6
{[%emt 0:00:03]} 80. Kd6 {[%emt 0:00:01]} Kf6 {[%emt 0:00:02]} 81. Kd7 {
[%emt 0:00:06]} Ng7 {[%emt 0:00:10]} 82. Ra5 {[%emt 0:00:01]} h5 {[%emt 0:00:
02]} 83. g5# {[%emt 0:00:01]} 1-0

[Event "RUS-ch Blitz 2021"]
[Site "Sochi"]
[Date "2021.10.11"]
[Round "2.16"]
[White "Ekdyshman, Mikhail"]
[Black "Kezin, Roman"]
[Result "1/2-1/2"]
[ECO "D43"]
[WhiteElo "2315"]
[BlackElo "2492"]
[Annotator "ChessBase"]
[PlyCount "144"]
[EventDate "2021.10.11"]
[EventType "blitz"]
[EventCountry "RUS"]
[SourceTitle "playchess.com"]
[Source "ChessBase"]
[SourceQuality "1"]
[TimeControl "180+2"]

1. d4 {[%emt 0:00:00]} d5 {[%emt 0:00:00]} 2. c4 {[%emt 0:00:02]} e6 {[%emt 0:
00:00]} 3. Nc3 {[%emt 0:00:04]} c6 {[%emt 0:00:01]} 4. Nf3 {[%emt 0:00:00]} Nf6
{[%emt 0:00:00]} 5. a4 {[%emt 0:00:10]} Be7 {[%emt 0:01:02]} 6. e3 {[%emt 0:00:
21]} O-O {[%emt 0:00:34]} 7. Bd3 {[%emt 0:00:00]} b6 {[%emt 0:00:02]} 8. O-O {
[%emt 0:00:12]} Nbd7 {[%emt 0:00:05]} 9. Qc2 {[%emt 0:00:06]} Bb7 {[%emt 0:00:
06]} 10. a5 {[%emt 0:00:12]} dxc4 {[%emt 0:00:10]} 11. Bxc4 {[%emt 0:00:03]} c5
{[%emt 0:00:00]} 12. a6 {[%emt 0:00:04]} Bxf3 {[%emt 0:00:06]} 13. gxf3 {
[%emt 0:00:00]} cxd4 {[%emt 0:00:14]} 14. exd4 {[%emt 0:00:00]} Rc8 {[%emt 0:
00:03]} 15. Bd3 {[%emt 0:00:14]} e5 {[%emt 0:00:00]} 16. d5 {[%emt 0:00:13]}
Nxd5 {[%emt 0:00:41]} 17. Bxh7+ {[%emt 0:00:03]} Kh8 {[%emt 0:00:00]} 18. Bf5 {
[%emt 0:00:09]} Rc7 {[%emt 0:00:08]} 19. Rd1 {[%emt 0:00:18]} Nxc3 {[%emt 0:00:
17]} 20. bxc3 {[%emt 0:00:00]} Qe8 {[%emt 0:00:02]} 21. f4 {[%emt 0:00:43]} Bc5
{[%emt 0:00:10]} 22. Qd3 {[%emt 0:00:16]} Nf6 {[%emt 0:00:00]} 23. Qh3+ {
[%emt 0:00:05]} Kg8 {[%emt 0:00:00]} 24. Re1 {[%emt 0:00:11]} e4 {[%emt 0:00:
07]} 25. Rxe4 {[%emt 0:00:08]} Qc6 {[%emt 0:00:00]} 26. Re1 {[%emt 0:00:06]} g6
{[%emt 0:00:00]} 27. Bg4 {[%emt 0:00:07]} Rd8 {[%emt 0:00:06]} 28. Bf3 {
[%emt 0:00:00]} Qb5 {[%emt 0:00:01]} 29. c4 {[%emt 0:00:07]} Qxc4 {[%emt 0:00:
01]} 30. Bb2 {[%emt 0:00:03]} Qxf4 {[%emt 0:00:00]} 31. Ra4 {[%emt 0:00:05]}
Qg5+ {[%emt 0:00:01]} 32. Rg4 {[%emt 0:00:01]} Qf5 {[%emt 0:00:06]} 33. Rg3 {
[%emt 0:00:03]} Qxh3 {[%emt 0:00:00]} 34. Rxh3 {[%emt 0:00:02]} Bd4 {[%emt 0:
00:01]} 35. Rd1 {[%emt 0:00:02]} Rcd7 {[%emt 0:00:02]} 36. Bxd4 {[%emt 0:00:02]
} Rxd4 {[%emt 0:00:00]} 37. Re1 {[%emt 0:00:00]} R8d7 {[%emt 0:00:00]} 38. Bb7
{[%emt 0:00:00]} Kg7 {[%emt 0:00:08]} 39. Rc3 {[%emt 0:00:00]} Rd8 {[%emt 0:00:
03]} 40. Rc7 {[%emt 0:00:04]} R4d7 {[%emt 0:00:00]} 41. Re7 {[%emt 0:00:02]}
Rxe7 {[%emt 0:00:00]} 42. Rxe7 {[%emt 0:00:01]} Nd5 {[%emt 0:00:03]} 43. Bxd5 {
[%emt 0:00:00]} Rxd5 {[%emt 0:00:03]} 44. Rxa7 {[%emt 0:00:02]} Ra5 {[%emt 0:
00:03]} 45. Ra8 {[%emt 0:00:01]} Kf6 {[%emt 0:00:00]} 46. a7 {[%emt 0:00:00]}
Ke7 {[%emt 0:00:03]} 47. Kg2 {[%emt 0:00:06]} Ra3 {[%emt 0:00:00]} 48. Rb8 {
[%emt 0:00:04]} Rxa7 {[%emt 0:00:01]} 49. Rxb6 {[%emt 0:00:01]} Ra3 {[%emt 0:
00:04]} 50. Rb5 {[%emt 0:00:00]} Kf6 {[%emt 0:00:01]} 51. Rc5 {[%emt 0:00:00]}
Kg7 {[%emt 0:00:02]} 52. Rb5 {[%emt 0:00:00]} f5 {[%emt 0:00:01]} 53. Rc5 {
[%emt 0:00:04]} Kh6 {[%emt 0:00:02]} 54. Rc4 {[%emt 0:00:01]} Kh5 {[%emt 0:00:
01]} 55. h3 {[%emt 0:00:04]} Kg5 {[%emt 0:00:04]} 56. Rb4 {[%emt 0:00:00]} Rc3
{[%emt 0:00:03]} 57. Rd4 {[%emt 0:00:02]} Kh5 {[%emt 0:00:00]} 58. Rb4 {
[%emt 0:00:04]} g5 {[%emt 0:00:00]} 59. Rd4 {[%emt 0:00:02]} f4 {[%emt 0:00:02]
} 60. Rb4 {[%emt 0:00:03]} Kh4 {[%emt 0:00:06]} 61. Rb7 {[%emt 0:00:03]} Kh5 {
[%emt 0:00:01]} 62. Rh7+ {[%emt 0:00:02]} Kg6 {[%emt 0:00:01]} 63. Rb7 {
[%emt 0:00:02]} Rc5 {[%emt 0:00:03]} 64. Rb3 {[%emt 0:00:02]} Kf5 {[%emt 0:00:
01]} 65. Rd3 {[%emt 0:00:00]} Ke4 {[%emt 0:00:01]} 66. Rb3 {[%emt 0:00:00]} Ra5
{[%emt 0:00:03]} 67. Rc3 {[%emt 0:00:04]} Ra1 {[%emt 0:00:03]} 68. Rc4+ {
[%emt 0:00:06]} Kf5 {[%emt 0:00:03]} 69. Rc5+ {[%emt 0:00:01]} Kg6 {[%emt 0:00:
00]} 70. Rc3 {[%emt 0:00:02]} Kh5 {[%emt 0:00:03]} 71. Rb3 {[%emt 0:00:02]} Rc1
{[%emt 0:00:02]} 72. Ra3 {[%emt 0:00:00]} Rc4 {[%emt 0:00:03]} 1/2-1/2

[Event "RUS-ch Blitz 2021"]
[Site "Sochi"]
[Date "2021.10.11"]
[Round "2.17"]
[White "Rozum, Ivan"]
[Black "Kyshtymov, Daniil"]
[Result "1-0"]
[ECO "E60"]
[WhiteElo "2529"]
[BlackElo "2109"]
[Annotator "ChessBase"]
[PlyCount "135"]
[EventDate "2021.10.11"]
[EventType "blitz"]
[EventCountry "RUS"]
[SourceTitle "playchess.com"]
[Source "ChessBase"]
[SourceQuality "1"]
[TimeControl "180+2"]

1. b3 {[%emt 0:00:04]} Nf6 {[%emt 0:00:00]} 2. Bb2 {[%emt 0:00:00]} g6 {
[%emt 0:00:00]} 3. g3 {[%emt 0:00:01]} Bg7 {[%emt 0:00:04]} 4. Bg2 {[%emt 0:00:
00]} O-O {[%emt 0:00:05]} 5. Nf3 {[%emt 0:00:00]} d6 {[%emt 0:00:00]} 6. d4 {
[%emt 0:00:00]} Nbd7 {[%emt 0:00:38]} 7. O-O {[%emt 0:00:01]} e5 {[%emt 0:00:
26]} 8. dxe5 {[%emt 0:00:02]} Ng4 {[%emt 0:00:00]} 9. c4 {[%emt 0:00:06]} Ngxe5
{[%emt 0:00:03]} 10. Nc3 {[%emt 0:00:00]} Nxf3+ {[%emt 0:00:25]} 11. Bxf3 {
[%emt 0:00:05]} Nc5 {[%emt 0:00:56]} 12. Qd2 {[%emt 0:00:06]} Bh3 {[%emt 0:00:
32]} 13. Rfd1 {[%emt 0:00:00]} Qb8 {[%emt 0:00:07]} 14. Nd5 {[%emt 0:00:10]}
Nd7 {[%emt 0:00:12]} 15. Bxg7 {[%emt 0:00:26]} Kxg7 {[%emt 0:00:00]} 16. Qd4+ {
[%emt 0:00:00]} Ne5 {[%emt 0:00:03]} 17. Bh1 {[%emt 0:00:20]} f6 {[%emt 0:00:
02]} 18. c5 {[%emt 0:00:14]} c6 {[%emt 0:00:00]} 19. Nf4 {[%emt 0:00:05]} Bf5 {
[%emt 0:00:05]} 20. cxd6 {[%emt 0:00:06]} Rd8 {[%emt 0:00:00]} 21. Rd2 {
[%emt 0:00:18]} Nf7 {[%emt 0:00:00]} 22. Qc5 {[%emt 0:00:12]} Rxd6 {[%emt 0:00:
01]} 23. Rad1 {[%emt 0:00:03]} Rxd2 {[%emt 0:00:07]} 24. Rxd2 {[%emt 0:00:26]}
Qe5 {[%emt 0:00:00]} 25. Qc1 {[%emt 0:00:14]} Rd8 {[%emt 0:00:04]} 26. Bg2 {
[%emt 0:00:00]} Rxd2 {[%emt 0:00:00]} 27. Qxd2 {[%emt 0:00:00]} Nd6 {[%emt 0:
00:04]} 28. h4 {[%emt 0:00:06]} h5 {[%emt 0:00:00]} 29. e3 {[%emt 0:00:11]} Bg4
{[%emt 0:00:01]} 30. Nd3 {[%emt 0:00:05]} Qe7 {[%emt 0:00:05]} 31. Nc5 {
[%emt 0:00:05]} Nf5 {[%emt 0:00:00]} 32. b4 {[%emt 0:00:01]} Nh6 {[%emt 0:00:
04]} 33. a4 {[%emt 0:00:00]} Bf5 {[%emt 0:00:02]} 34. a5 {[%emt 0:00:01]} b6 {
[%emt 0:00:00]} 35. Nb3 {[%emt 0:00:05]} Bd7 {[%emt 0:00:04]} 36. Qd4 {[%emt 0:
00:05]} Nf5 {[%emt 0:00:00]} 37. Qc3 {[%emt 0:00:00]} Qd6 {[%emt 0:00:04]} 38.
Nd2 {[%emt 0:00:03]} Be8 {[%emt 0:00:02]} 39. Ne4 {[%emt 0:00:00]} Qe5 {
[%emt 0:00:02]} 40. Qxe5 {[%emt 0:00:11]} fxe5 {[%emt 0:00:00]} 41. Nd2 {
[%emt 0:00:00]} bxa5 {[%emt 0:00:04]} 42. bxa5 {[%emt 0:00:00]} Kf6 {[%emt 0:
00:00]} 43. Nb3 {[%emt 0:00:04]} Ke6 {[%emt 0:00:04]} 44. Be4 {[%emt 0:00:03]}
Nd6 {[%emt 0:00:02]} 45. Nc5+ {[%emt 0:00:00]} Ke7 {[%emt 0:00:01]} 46. Bd3 {
[%emt 0:00:03]} Kd8 {[%emt 0:00:01]} 47. Kf1 {[%emt 0:00:04]} Kc7 {[%emt 0:00:
00]} 48. Ke2 {[%emt 0:00:03]} Nb7 {[%emt 0:00:01]} 49. Nxb7 {[%emt 0:00:08]}
Kxb7 {[%emt 0:00:03]} 50. Kf3 {[%emt 0:00:00]} Kc7 {[%emt 0:00:03]} 51. Ke4 {
[%emt 0:00:05]} Kd6 {[%emt 0:00:00]} 52. f4 {[%emt 0:00:08]} exf4 {[%emt 0:00:
05]} 53. Kxf4 {[%emt 0:00:00]} Ke6 {[%emt 0:00:03]} 54. Bc4+ {[%emt 0:00:02]}
Kf6 {[%emt 0:00:03]} 55. e4 {[%emt 0:00:00]} Bf7 {[%emt 0:00:01]} 56. e5+ {
[%emt 0:00:06]} Ke7 {[%emt 0:00:00]} 57. Bd3 {[%emt 0:00:04]} c5 {[%emt 0:00:
02]} 58. Ke4 {[%emt 0:00:00]} Be6 {[%emt 0:00:04]} 59. Bb5 {[%emt 0:00:05]} Bf7
{[%emt 0:00:02]} 60. Bc6 {[%emt 0:00:00]} Be6 {[%emt 0:00:02]} 61. Bd5 {
[%emt 0:00:04]} Bd7 {[%emt 0:00:03]} 62. Bc4 {[%emt 0:00:01]} Bc6+ {[%emt 0:00:
01]} 63. Kf4 {[%emt 0:00:00]} Kf8 {[%emt 0:00:03]} 64. Kg5 {[%emt 0:00:01]} Kg7
{[%emt 0:00:00]} 65. Bd3 {[%emt 0:00:04]} Be8 {[%emt 0:00:01]} 66. e6 {[%emt 0:
00:00]} Bc6 {[%emt 0:00:04]} 67. Bxg6 {[%emt 0:00:01]} Kf8 {[%emt 0:00:02]} 68.
Kf6 {[%emt 0:00:02]} 1-0

[Event "RUS-ch Blitz 2021"]
[Site "Sochi"]
[Date "2021.10.11"]
[Round "2.18"]
[White "Vlassow, Valentin"]
[Black "Popov, Valerij"]
[Result "0-1"]
[ECO "C01"]
[WhiteElo "2238"]
[BlackElo "2537"]
[Annotator "ChessBase"]
[PlyCount "84"]
[EventDate "2021.10.11"]
[EventType "blitz"]
[EventCountry "RUS"]
[SourceTitle "playchess.com"]
[Source "ChessBase"]
[SourceQuality "1"]
[TimeControl "180+2"]

1. e4 {[%emt 0:00:03]} e6 {[%emt 0:00:08]} 2. d4 {[%emt 0:00:00]} d5 {[%emt 0:
00:00]} 3. exd5 {[%emt 0:00:02]} exd5 {[%emt 0:00:00]} 4. Nf3 {[%emt 0:00:00]}
Bg4 {[%emt 0:00:09]} 5. Bd3 {[%emt 0:00:13]} Nc6 {[%emt 0:00:18]} 6. c3 {
[%emt 0:00:06]} Bd6 {[%emt 0:00:00]} 7. Nbd2 {[%emt 0:00:21]} Qe7+ {[%emt 0:00:
27]} 8. Qe2 {[%emt 0:00:00]} Qxe2+ {[%emt 0:00:02]} 9. Bxe2 {[%emt 0:00:01]}
O-O-O {[%emt 0:00:08]} 10. O-O {[%emt 0:00:08]} Re8 {[%emt 0:00:04]} 11. Bb5 {
[%emt 0:00:03]} Nge7 {[%emt 0:00:07]} 12. h3 {[%emt 0:00:12]} Bh5 {[%emt 0:00:
04]} 13. Ne5 {[%emt 0:00:43]} f6 {[%emt 0:00:39]} 14. Nxc6 {[%emt 0:00:04]}
Nxc6 {[%emt 0:00:00]} 15. Nb3 {[%emt 0:00:11]} Be2 {[%emt 0:00:13]} 16. Bxe2 {
[%emt 0:00:06]} Rxe2 {[%emt 0:00:00]} 17. Rb1 {[%emt 0:00:12]} Rhe8 {[%emt 0:
00:20]} 18. Bd2 {[%emt 0:00:05]} Na5 {[%emt 0:00:05]} 19. Nxa5 {[%emt 0:00:26]}
Rxd2 {[%emt 0:00:04]} 20. Nb3 {[%emt 0:00:01]} Rc2 {[%emt 0:00:07]} 21. Na1 {
[%emt 0:00:08]} Rce2 {[%emt 0:00:00]} 22. Rfd1 {[%emt 0:00:05]} h5 {[%emt 0:00:
16]} 23. Kf1 {[%emt 0:00:01]} Kd7 {[%emt 0:00:15]} 24. Re1 {[%emt 0:00:01]}
Rxe1+ {[%emt 0:00:04]} 25. Rxe1 {[%emt 0:00:01]} Ra8 {[%emt 0:00:00]} 26. Nc2 {
[%emt 0:00:05]} c6 {[%emt 0:00:00]} 27. Ne3 {[%emt 0:00:04]} g6 {[%emt 0:00:01]
} 28. Nc2 {[%emt 0:00:03]} a5 {[%emt 0:00:05]} 29. a4 {[%emt 0:00:00]} Ra6 {
[%emt 0:00:00]} 30. Re2 {[%emt 0:00:06]} Rb6 {[%emt 0:00:00]} 31. Ne1 {[%emt 0:
00:03]} Ra6 {[%emt 0:00:08]} 32. Nd3 {[%emt 0:00:00]} b6 {[%emt 0:00:00]} 33.
g4 {[%emt 0:00:07]} hxg4 {[%emt 0:00:00]} 34. hxg4 {[%emt 0:00:00]} Ra8 {
[%emt 0:00:02]} 35. Kg2 {[%emt 0:00:12]} Rh8 {[%emt 0:00:01]} 36. Re1 {[%emt 0:
00:02]} Rh2+ {[%emt 0:00:05]} 37. Kf3 {[%emt 0:00:04]} c5 {[%emt 0:00:05]} 38.
dxc5 {[%emt 0:00:08]} bxc5 {[%emt 0:00:04]} 39. Rd1 {[%emt 0:00:08]} Kc6 {
[%emt 0:00:03]} 40. Re1 {[%emt 0:00:00]} Rh3+ {[%emt 0:00:02]} 41. Ke2 {
[%emt 0:00:04]} c4 {[%emt 0:00:00]} 42. Nc1 {[%emt 0:00:05]} Bf4 {[%emt 0:00:
00]} 0-1

[Event "RUS-ch Blitz 2021"]
[Site "Sochi"]
[Date "2021.10.11"]
[Round "2.19"]
[White "Zubritskiy, Artyom"]
[Black "Ivlev, Aleksey"]
[Result "1-0"]
[ECO "A12"]
[WhiteElo "2442"]
[BlackElo "2315"]
[Annotator "ChessBase"]
[PlyCount "83"]
[EventDate "2021.10.11"]
[EventType "blitz"]
[EventCountry "RUS"]
[SourceTitle "playchess.com"]
[Source "ChessBase"]
[SourceQuality "1"]
[TimeControl "180+2"]

1. c4 {[%emt 0:00:00]} c6 {[%emt 0:00:05]} 2. Nf3 {[%emt 0:00:01]} d5 {[%emt 0:
00:00]} 3. b3 {[%emt 0:00:09]} Nf6 {[%emt 0:00:00]} 4. Bb2 {[%emt 0:00:05]} Bf5
{[%emt 0:00:00]} 5. d3 {[%emt 0:00:07]} e6 {[%emt 0:00:08]} 6. Nh4 {[%emt 0:00:
21]} Bg4 {[%emt 0:00:00]} 7. h3 {[%emt 0:00:03]} Bh5 {[%emt 0:00:00]} 8. g4 {
[%emt 0:00:38]} Bg6 {[%emt 0:00:18]} 9. Bg2 {[%emt 0:00:06]} Nbd7 {[%emt 0:00:
14]} 10. Nd2 {[%emt 0:00:00]} Bd6 {[%emt 0:00:11]} 11. Nxg6 {[%emt 0:00:22]}
hxg6 {[%emt 0:00:00]} 12. e3 {[%emt 0:00:00]} Qe7 {[%emt 0:00:10]} 13. a3 {
[%emt 0:00:19]} O-O-O {[%emt 0:00:53]} 14. Qc2 {[%emt 0:00:18]} Kb8 {[%emt 0:
00:05]} 15. b4 {[%emt 0:00:12]} Bc7 {[%emt 0:00:46]} 16. O-O-O {[%emt 0:00:25]}
g5 {[%emt 0:00:04]} 17. Nf3 {[%emt 0:00:03]} Ne8 {[%emt 0:00:04]} 18. Kb1 {
[%emt 0:00:00]} f6 {[%emt 0:00:03]} 19. Nd4 {[%emt 0:00:08]} e5 {[%emt 0:00:11]
} 20. Nf5 {[%emt 0:00:12]} Qf7 {[%emt 0:00:00]} 21. cxd5 {[%emt 0:00:02]} cxd5
{[%emt 0:00:00]} 22. Rc1 {[%emt 0:00:06]} g6 {[%emt 0:00:00]} 23. Ng3 {[%emt 0:
00:01]} Rc8 {[%emt 0:00:06]} 24. Qb3 {[%emt 0:00:00]} Nb6 {[%emt 0:00:00]} 25.
Ne4 {[%emt 0:00:03]} Nd6 {[%emt 0:00:15]} 26. Nc5 {[%emt 0:00:01]} e4 {[%emt 0:
00:00]} 27. dxe4 {[%emt 0:00:03]} Nbc4 {[%emt 0:00:05]} 28. Rhd1 {[%emt 0:00:
03]} dxe4 {[%emt 0:00:05]} 29. Bxe4 {[%emt 0:00:09]} Nxe4 {[%emt 0:00:10]} 30.
Nd7+ {[%emt 0:00:02]} Ka8 {[%emt 0:00:00]} 31. Qxc4 {[%emt 0:00:03]} Qxc4 {
[%emt 0:00:02]} 32. Rxc4 {[%emt 0:00:01]} Nxf2 {[%emt 0:00:02]} 33. Rdc1 {
[%emt 0:00:00]} Nxh3 {[%emt 0:00:08]} 34. Rxc7 {[%emt 0:00:04]} Rxc7 {[%emt 0:
00:00]} 35. Rxc7 {[%emt 0:00:00]} Nf2 {[%emt 0:00:00]} 36. Bxf6 {[%emt 0:00:00]
} Re8 {[%emt 0:00:06]} 37. Bxg5 {[%emt 0:00:00]} Nxg4 {[%emt 0:00:00]} 38. Nf6
{[%emt 0:00:06]} Nxf6 {[%emt 0:00:00]} 39. Bxf6 {[%emt 0:00:03]} Kb8 {[%emt 0:
00:00]} 40. Re7 {[%emt 0:00:01]} Rf8 {[%emt 0:00:04]} 41. Be5+ {[%emt 0:00:01]}
Ka8 {[%emt 0:00:00]} 42. Rg7 {[%emt 0:00:03]} 1-0

[Event "RUS-ch Blitz 2021"]
[Site "Sochi"]
[Date "2021.10.11"]
[Round "2.21"]
[White "Zakhartsov, Vladimir"]
[Black "Kononenko, Dmitry"]
[Result "1-0"]
[ECO "D45"]
[WhiteElo "2514"]
[BlackElo "2613"]
[Annotator "ChessBase"]
[PlyCount "53"]
[EventDate "2021.10.11"]
[EventType "blitz"]
[EventCountry "RUS"]
[SourceTitle "playchess.com"]
[Source "ChessBase"]
[SourceQuality "1"]
[TimeControl "180+2"]

1. d4 {[%emt 0:00:00]} d5 {[%emt 0:00:04]} 2. c4 {[%emt 0:00:00]} c6 {[%emt 0:
00:00]} 3. Nc3 {[%emt 0:00:06]} Nf6 {[%emt 0:00:00]} 4. Nf3 {[%emt 0:00:00]} e6
{[%emt 0:00:00]} 5. e3 {[%emt 0:00:04]} Nbd7 {[%emt 0:00:00]} 6. Be2 {[%emt 0:
00:00]} dxc4 {[%emt 0:00:08]} 7. a4 {[%emt 0:00:00]} Bb4 {[%emt 0:00:33]} 8.
Bxc4 {[%emt 0:00:00]} O-O {[%emt 0:00:00]} 9. O-O {[%emt 0:00:00]} Qe7 {
[%emt 0:00:00]} 10. Qb3 {[%emt 0:00:48]} a5 {[%emt 0:00:22]} 11. e4 {[%emt 0:
00:12]} e5 {[%emt 0:00:57]} 12. Bg5 {[%emt 0:01:00]} exd4 {[%emt 0:00:11]} 13.
Nxd4 {[%emt 0:00:00]} Nc5 {[%emt 0:00:43]} 14. Qc2 {[%emt 0:00:00]} h6 {
[%emt 0:00:00]} 15. Bh4 {[%emt 0:00:00]} g5 {[%emt 0:00:00]} 16. Bg3 {[%emt 0:
00:11]} Ncxe4 {[%emt 0:00:09]} 17. Rfe1 {[%emt 0:00:03]} Bxc3 {[%emt 0:00:00]}
18. bxc3 {[%emt 0:00:03]} Qc5 {[%emt 0:00:00]} 19. Qd3 {[%emt 0:00:29]} Nxg3 {
[%emt 0:00:01]} 20. Qg6+ {[%emt 0:00:01]} Kh8 {[%emt 0:00:16]} 21. Qxf6+ {
[%emt 0:00:00]} Kh7 {[%emt 0:00:00]} 22. Bd3+ {[%emt 0:00:07]} Kg8 {[%emt 0:00:
11]} 23. hxg3 {[%emt 0:00:17]} Qxc3 {[%emt 0:00:00]} 24. Rad1 {[%emt 0:00:00]}
c5 {[%emt 0:00:00]} 25. Qxh6 {[%emt 0:00:00]} f5 {[%emt 0:00:05]} 26. Qg6+ {
[%emt 0:00:04]} Kh8 {[%emt 0:00:01]} 27. Re7 {[%emt 0:00:03]} 1-0